lending/lending_fUSD_20240512
["ID","MTS","AMOUNT","RATE_DAILY","PERIOD"]
[326855859,1715515832075,-800.0,0.000123,4]
[326855860,1715515832084,-1100.0,0.000124,4]
[326855861,1715515832093,-868.75,0.000125,2]
[326855862,1715515832102,-1400.0,0.000125,4]
[326855863,1715515832112,-12645.13966873,0.000125,2]
[326855864,1715515832121,-200.0,0.000126,4]
[326855865,1715515832130,-553.49,0.00012602,2]
[326855866,1715515832139,-500.0,0.00012602,2]
[326855867,1715515832148,-500.0,0.00012602,2]
[326855868,1715515832156,-1563.06983317,0.00012683,2]
[326855869,1715515832166,-200.0,0.000127,4]
[326855870,1715515832175,-2453.52771419,0.00012739,2]
[326855871,1715515832184,-188.59770756,0.00012795,2]
[326855872,1715515832193,-2321.85142819,0.00012795,2]
[326855873,1715515832202,-165.49149214,0.00012795,2]
[326855874,1715515832211,-5939.9276,0.00012797,2]
[326855875,1715515832221,-1317.3147,0.00012797,2]
[326855876,1715515832230,-500.0,0.00012799,2]
[326855877,1715515832239,-188.59770756,0.000128,2]
[326855878,1715515832248,-200.0,0.000128,4]
[326855879,1715515832257,-2321.85142811,0.000128,2]
[326855880,1715515832266,-2321.85142811,0.00012805,2]
[326855881,1715515832275,-2321.85142811,0.0001281,2]
[326855882,1715515832284,-2321.85142811,0.00012815,2]
[326855883,1715515832293,-2321.85142811,0.0001282,2]
[326855884,1715515832303,-2321.85142811,0.00012826,2]
[326855885,1715515832312,-210.0,0.00012826,2]
[326855886,1715515832321,-840.77767917,0.00012831,2]
[326855896,1715515837469,-1481.07374894,0.00012831,2]
[326855897,1715515837478,-2321.85142811,0.00012836,2]
[326855898,1715515837488,-200.0,0.00012836,2]
[326855899,1715515837497,-2321.85142811,0.00012841,2]
[326855900,1715515837507,-2321.85142811,0.00012846,2]
[326855901,1715515837516,-165.49149213,0.00012847,2]
[326855902,1715515837526,-175.63691096,0.00012849,2]
[326855903,1715515837535,-414.37986363,0.00012851,2]
[326855905,1715515837844,-278.14382276,0.00012851,2]
[326855906,1715515837869,-1629.32774172,0.00012851,2]
[326855907,1715515837879,-1204.64150175,0.00012867,2]
[326855908,1715515837888,-300.0,0.00012867,2]
[326855909,1715515837898,-500.0,0.00012868,2]
[326855910,1715515837907,-500.0,0.00012868,2]
[326855911,1715515837917,-4094.29,0.00012868,2]
[326855912,1715515837926,-500.0,0.00012868,2]
[326855913,1715515837936,-1832.02512248,0.00012868,2]
[326855914,1715515837945,-500.0,0.00012868,2]
[326855915,1715515837954,-3663.13,0.00012869,2]
[326855916,1715515837963,-3663.13,0.00012869,3]
[326855917,1715515837973,-2742.72,0.00012869,2]
[326855918,1715515837983,-2742.72,0.00012869,3]
[326855919,1715515837992,-1682.52,0.00012869,2]
[326855920,1715515838002,-1682.52,0.00012869,3]
[326855921,1715515838011,-8903.48,0.00012869,2]
[326855922,1715515838021,-8903.48,0.00012869,3]
[326855923,1715515838030,-11553.48,0.00012869,2]
[326855924,1715515838040,-11553.48,0.00012869,3]
[326855925,1715515838050,-4289.43,0.00012869,2]
[326855926,1715515838059,-4289.43,0.00012869,3]
[326855927,1715515838070,-26952.74,0.00012869,2]
[326855928,1715515838079,-26952.74,0.00012869,3]
[326855929,1715515838088,-2228.19,0.00012869,2]
[326855930,1715515838097,-2228.19,0.00012869,3]
[326855931,1715515838107,-2821.62,0.00012869,2]
[326855932,1715515838116,-2821.62,0.00012869,3]
[326855933,1715515838125,-1705.74,0.00012869,2]
[326855934,1715515838134,-1705.74,0.00012869,3]
[326855935,1715515838144,-156.4545868,0.00012873,2]
[326855936,1715515838153,-200.0,0.00012875,2]
[326855937,1715515838163,-1000.0,0.00012875,2]
[326855938,1715515838172,-500.0,0.00012875,2]
[326855939,1715515838182,-200.0,0.00012876,2]
[326855940,1715515838192,-1000.0,0.00012876,2]
[326855941,1715515838201,-500.0,0.00012876,2]
[326855942,1715515838210,-495688.29933454,0.00012879,2]
[326855943,1715515838222,-76881.13571081,0.00012879,2]
[326855944,1715515838233,-270.95760957,0.00012879,2]
[326855945,1715515838259,-6116.53369339,0.00012879,2]
[326855946,1715515838279,-4756.280333,0.00012879,2]
[326855947,1715515838311,-3429.54974447,0.00012879,2]
[326855983,1715515840972,-1434.8542506,0.00012879,2]
[326856005,1715515842605,-368.20071861,0.00012879,2]
[326856007,1715515842616,-488.73793469,0.00012879,2]
[326856010,1715515842634,-539.06283141,0.00012879,2]
[326856012,1715515842645,-14810.55761016,0.00012879,2]
[326856014,1715515842656,-68693.15658102,0.00012879,2]
[326856015,1715515842665,-166.21,0.00012882,2]
[326856016,1715515842674,-166.21,0.00012883,2]
[326856017,1715515842683,-1468.94081904,0.00012891,2]
[326856018,1715515842692,-1468.16,0.00012891,2]
[326856019,1715515842701,-1468.16,0.00012891,3]
[326856020,1715515842710,-857.17,0.00012891,2]
[326856021,1715515842719,-857.17,0.00012891,3]
[326856022,1715515842728,-500.0,0.00012891,2]
[326856023,1715515842737,-500.0,0.00012891,3]
[326856024,1715515842746,-649.33,0.00012891,2]
[326856025,1715515842754,-649.33,0.00012891,3]
[326856026,1715515842763,-3030.97,0.00012891,2]
[326856027,1715515842772,-3030.97,0.00012891,3]
[326856028,1715515842781,-500.0,0.00012891,2]
[326856029,1715515842790,-687.0,0.00012892,2]
[326856030,1715515842799,-687.0,0.00012892,3]
[326856031,1715515842809,-687.0,0.00012892,4]
[326856032,1715515842818,-806.46,0.00012892,2]
[326856033,1715515842827,-806.46,0.00012892,3]
[326856034,1715515842836,-5621.87,0.00012892,2]
[326856035,1715515842845,-5621.87,0.00012892,3]
[326856036,1715515842855,-5621.87,0.00012892,4]
[326856037,1715515842864,-35480.58,0.00012892,2]
[326856038,1715515842873,-16710.47042701,0.00012892,3]
[326856039,1715515842885,-18770.10957299,0.00012892,3]
[326856040,1715515842894,-2860.38,0.00012892,2]
[326856041,1715515842903,-2860.38,0.00012892,3]
[326856042,1715515842912,-3191.37,0.00012892,2]
[326856043,1715515842921,-2860.38,0.00012892,4]
[326856044,1715515842930,-3191.37,0.00012892,3]
[326856045,1715515842939,-1169.67,0.00012892,2]
[326856046,1715515842948,-1169.67,0.00012892,3]
[326856047,1715515842958,-1169.67,0.00012892,4]
[326856048,1715515842967,-15867.67,0.00012892,2]
[326856049,1715515842976,-15867.67,0.00012892,3]
[326856050,1715515842986,-8443.45002817,0.00012892,4]
[326856052,1715515842997,-518.37883003,0.00012892,4]
[326856084,1715515843509,-1622.35091717,0.00012892,4]
[326856085,1715515843816,-3085.85,0.00012892,4]
[326856087,1715515845600,-155.0,0.00012878,2]
[326856088,1715515845610,-381.82847478,0.00012878,2]
[326856089,1715515845709,-500.90445071,0.00012878,2]
[326856090,1715515845731,-755.98242181,0.0001289,2]
[326856091,1715515845741,-157.30033576,0.0001289,2]
[326856092,1715515845751,-980.1,0.00012891,2]
[326856093,1715515845760,-980.1,0.00012891,3]
[326856094,1715515845770,-2197.64022463,0.00012892,4]
[326856095,1715515845781,-3423.96,0.00012892,2]
[326856096,1715515845792,-3423.96,0.00012892,3]
[326856097,1715515845802,-1793.11,0.00012892,2]
[326856098,1715515845812,-1793.11,0.00012892,3]
[326856099,1715515845828,-2635.82,0.00012892,2]
[326856100,1715515845839,-2635.82,0.00012892,3]
[326856101,1715515845848,-2635.82,0.00012892,4]
[326856102,1715515845859,-2208.74,0.00012892,2]
[326856103,1715515845869,-2208.74,0.00012892,3]
[326856104,1715515845879,-3194.1,0.00012892,2]
[326856105,1715515845888,-2093.9,0.00012892,2]
[326856106,1715515845898,-2093.9,0.00012892,3]
[326856107,1715515845908,-3194.1,0.00012892,3]
[326856108,1715515845918,-3194.1,0.00012892,4]
[326856109,1715515845928,-1736.16,0.00012892,2]
[326856110,1715515845938,-1736.16,0.00012892,3]
[326856112,1715515845952,-1736.16,0.00012892,4]
[326856113,1715515845962,-1736.16,0.00012892,5]
[326856115,1715515845972,-3723.61,0.00012892,2]
[326856117,1715515845983,-3723.61,0.00012892,3]
[326856118,1715515845993,-6331.26,0.00012892,2]
[326856120,1715515846003,-6331.26,0.00012892,3]
[326856124,1715515846013,-6331.26,0.00012892,4]
[326856125,1715515846024,-500.0,0.00012892,2]
[326856126,1715515846035,-500.0,0.00012892,3]
[326856127,1715515846045,-500.0,0.00012892,4]
[326856128,1715515846056,-500.0,0.00012892,5]
[326856129,1715515846066,-1304.32,0.00012892,2]
[326856130,1715515846077,-1304.32,0.00012892,3]
[326856131,1715515846088,-1304.32,0.00012892,4]
[326856132,1715515846099,-1304.32,0.00012892,5]
[326856133,1715515846110,-1630.76,0.00012892,2]
[326856134,1715515846120,-1630.76,0.00012892,3]
[326856135,1715515846131,-1630.76,0.00012892,4]
[326856136,1715515846142,-1630.76,0.00012892,5]
[326856137,1715515846153,-500.0,0.00012892,3]
[326856138,1715515846163,-1049.66,0.00012892,2]
[326856139,1715515846174,-1049.66,0.00012892,3]
[326856140,1715515846184,-1049.66,0.00012892,4]
[326856141,1715515846194,-1049.66,0.00012892,5]
[326856142,1715515846204,-3332.97,0.00012892,2]
[326856143,1715515846215,-3332.97,0.00012892,3]
[326856144,1715515846226,-3332.97,0.00012892,4]
[326856145,1715515846236,-1686.47,0.00012892,2]
[326856146,1715515846246,-956.39902492,0.00012892,3]
[326856147,1715516283755,-155.0,0.00010541,2]
[326856148,1715516283776,-623.01390858,0.00010542,2]
[326856149,1715516283798,-155.0,0.00010542,2]
[326856150,1715516283818,-217.20437047,0.00010543,2]
[326856151,1715516283839,-266.10096852,0.00010544,2]
[326856152,1715516283861,-2583.68075243,0.00010544,2]
[326856153,1715516285030,-882.73292549,0.0001054,2]
[326856154,1715516285051,-2686.31389928,0.00010544,2]
[326856155,1715516285073,-155.60564963,0.00010757,2]
[326856156,1715516288385,275.3475256,0.00010442,2]
[326856157,1715516288407,182.94304595,0.00010442,2]
[326856158,1715516300200,3817.05695405,0.00010958,2]
[326856159,1715516300221,4000.0,0.00010958,2]
[326856160,1715516300243,4000.0,0.00010958,2]
[326856161,1715516300263,4000.0,0.00010958,2]
[326856162,1715516335044,411.03698173,7.832e-05,2]
[326856163,1715516371179,24588.96301827,7.832e-05,2]
[326856169,1715516807634,-600.0,7.822e-05,2]
[326856179,1715517031661,-1116.87625315,7.821e-05,2]
[326856180,1715517031670,-3034.0104,7.822e-05,2]
[326856181,1715517031680,-6068.56720219,7.832e-05,2]
[326856182,1715517031692,-6332.7,7.832e-05,2]
[326856183,1715517031721,-98528.40950278,7.832e-05,2]
[326856184,1715517031731,-583.8,0.00010959,2]
[326856185,1715517031740,-583.8,0.00010959,2]
[326856186,1715517031749,-389.2,0.00010959,2]
[326856187,1715517031758,-389.2,0.00010959,2]
[326856188,1715517031767,-259.47,0.00010959,2]
[326856189,1715517031776,-216.22,0.00010959,2]
[326856190,1715517031785,-180.19,0.00010959,2]
[326856191,1715517031794,-150.15,0.00010959,2]
[326856192,1715517031804,-250.0,0.00011617,2]
[326856193,1715517031813,-1237.86,0.00011617,2]
[326856194,1715517031822,-611.94,0.00011693,2]
[326856195,1715517031832,-195.03,0.00011725,2]
[326856196,1715517031841,-280.56,0.00011743,2]
[326856197,1715517031850,-152.49,0.00011744,2]
[326856198,1715517031859,-388.06,0.00011751,2]
[326856199,1715517031868,-250.0,0.00011773,2]
[326856200,1715517031878,-499.99,0.00011788,2]
[326856201,1715517031887,-7538.1,0.0001182,2]
[326856202,1715517031896,-173.54,0.00011838,2]
[326856203,1715517031906,-152.49,0.0001205,2]
[326856204,1715517031914,-152.49,0.00012356,2]
[326856205,1715517031924,-1000.0,0.000126,2]
[326856206,1715517031932,-500.0,0.00012602,2]
[326856207,1715517031941,-152.46,0.00012603,2]
[326856208,1715517031951,-155.39376168,0.00012632,2]
[326856209,1715517031960,-1966.49101758,0.00012677,2]
[326856210,1715517031969,-405.05415602,0.00012755,2]
[326856211,1715517031979,-2852.71255,0.0001276,2]
[326856212,1715517031988,-150.0,0.00012767,2]
[326856213,1715517031998,-150.0,0.00012767,2]
[326856214,1715517032007,-150.0,0.00012767,2]
[326856215,1715517032017,-314.52465362,0.00012768,2]
[326856216,1715517032027,-2005.8594,0.00012769,2]
[326856217,1715517032036,-785.00325115,0.00012789,2]
[326856218,1715517032046,-203.6510763,0.0001279,2]
[326856219,1715517032057,-156.75428158,0.0001279,2]
[326856220,1715517032066,-2713.40801453,0.0001279,2]
[326856221,1715517032075,-173.13322766,0.0001279,2]
[326856223,1715517032084,-1125.36975258,0.0001279,2]
[326856225,1715517032097,-785.00325115,0.0001279,2]
[326856227,1715517032106,-2713.40801448,0.0001279,2]
[326856228,1715517032115,-2713.40801448,0.00012791,2]
[326856229,1715517032124,-785.00325115,0.00012791,2]
[326856230,1715517032135,-2713.40801448,0.00012791,2]
[326856231,1715517032145,-2713.40801448,0.00012792,2]
[326856232,1715517032155,-22425.7436,0.00012792,2]
[326856233,1715517032165,-2713.40801448,0.00012792,2]
[326856234,1715517032175,-2713.40801448,0.00012793,2]
[326856235,1715517032185,-2713.40801448,0.00012793,2]
[326856236,1715517032195,-2713.40801448,0.00012794,2]
[326856237,1715517032204,-2713.40801448,0.00012794,2]
[326856238,1715517032213,-2713.40801448,0.00012795,2]
[326856239,1715517032223,-2713.40801448,0.00012795,2]
[326856240,1715517032232,-200.0,0.00012836,2]
[326856241,1715517032242,-166.21,0.00012839,2]
[326856242,1715517032250,-171.81063135,0.00012848,2]
[326856243,1715517032260,-155.06187946,0.00012849,2]
[326856244,1715517032269,-500.0,0.00012849,2]
[326856245,1715517032278,-500.0,0.00012849,3]
[326856246,1715517032287,-500.0,0.00012849,4]
[326856247,1715517032297,-1444.71,0.00012849,2]
[326856248,1715517032306,-1444.71,0.00012849,3]
[326856249,1715517032315,-1444.71,0.00012849,4]
[326856250,1715517032324,-2039.57,0.00012849,2]
[326856251,1715517032333,-2039.57,0.00012849,3]
[326856252,1715517032342,-2039.57,0.00012849,4]
[326856253,1715517032351,-6571.75,0.00012849,2]
[326856254,1715517032360,-6571.75,0.00012849,3]
[326856255,1715517032370,-6571.75,0.00012849,4]
[326856256,1715517032379,-4506.22,0.00012849,2]
[326856257,1715517032388,-4506.22,0.00012849,3]
[326856258,1715517032398,-4506.22,0.00012849,4]
[326856259,1715517032408,-2020.79,0.00012849,2]
[326856260,1715517032417,-2020.79,0.00012849,3]
[326856261,1715517032427,-2020.79,0.00012849,4]
[326856262,1715517032437,-1605.03,0.00012849,2]
[326856263,1715517032446,-1605.03,0.00012849,3]
[326856264,1715517032455,-1605.03,0.00012849,4]
[326856265,1715517032465,-944.73,0.00012849,2]
[326856266,1715517032474,-944.73,0.00012849,3]
[326856267,1715517032483,-944.73,0.00012849,4]
[326856268,1715517032493,-1971.65,0.00012849,2]
[326856269,1715517032502,-1971.65,0.00012849,3]
[326856270,1715517032513,-1971.65,0.00012849,4]
[326856271,1715517032524,-6135.11,0.00012849,2]
[326856272,1715517032534,-6135.11,0.00012849,3]
[326856273,1715517032544,-6135.11,0.00012849,4]
[326856274,1715517032553,-565.90797363,0.00012849,2]
[326856275,1715517032563,-500.0,0.00012849,2]
[326856276,1715517032573,-228.90161589,0.00012849,3]
[326856277,1715517032583,-513.04,0.00012849,2]
[326856278,1715517032592,-513.04,0.00012849,3]
[326856279,1715517032601,-513.04,0.00012849,4]
[326856280,1715517032611,-500.0,0.00012849,2]
[326856281,1715517032620,-500.0,0.00012849,3]
[326856282,1715517032629,-500.0,0.00012849,4]
[326856283,1715517032639,-2030.95,0.00012849,2]
[326856284,1715517032648,-2030.95,0.00012849,3]
[326856285,1715517032657,-500.0,0.00012849,2]
[326856286,1715517032666,-2030.95,0.00012849,4]
[326856287,1715517032676,-500.0,0.00012849,3]
[326856288,1715517032685,-831.95,0.00012849,2]
[326856289,1715517032694,-831.95,0.00012849,3]
[326856290,1715517032703,-831.95,0.00012849,4]
[326856291,1715517032713,-500.0,0.00012849,4]
[326856292,1715517032722,-500.0,0.00012849,2]
[326856293,1715517032732,-500.0,0.00012849,2]
[326856294,1715517032741,-500.0,0.00012849,2]
[326856295,1715517032750,-500.0,0.00012849,2]
[326856296,1715517032760,-500.0,0.00012849,3]
[326856297,1715517032769,-403.65899176,0.00012849,4]
[326856298,1715517032778,-500.0,0.00012849,2]
[326856299,1715517032787,-500.0,0.00012849,2]
[326856300,1715517032796,-500.0,0.00012849,3]
[326856301,1715517032806,-500.0,0.00012849,3]
[326856302,1715517032815,-500.0,0.00012849,2]
[326856303,1715517032825,-500.0,0.00012849,4]
[326856304,1715517032834,-500.0,0.00012849,4]
[326856305,1715517032843,-1719.24,0.00012849,2]
[326856306,1715517032853,-500.0,0.00012849,2]
[326856307,1715517032862,-1004.82,0.00012849,2]
[326856308,1715517032871,-500.0,0.00012849,3]
[326856309,1715517032880,-1719.24,0.00012849,2]
[326856310,1715517032889,-1004.82,0.00012849,3]
[326856311,1715517032898,-1719.24,0.00012849,2]
[326856312,1715517032908,-1004.82,0.00012849,4]
[326856313,1715517032916,-500.0,0.00012849,4]
[326856314,1715517032926,-1173.31,0.00012849,2]
[326856315,1715517032935,-1173.31,0.00012849,3]
[326856316,1715517033216,-504.0042565,0.00012849,2]
[326856317,1715517033226,-1173.31,0.00012849,4]
[326856318,1715517033237,-668700.18701236,0.0001285,4]
[326856319,1715517033246,-500.0,0.00012868,2]
[326856320,1715517033256,-500.0,0.00012868,2]
[326856321,1715517033267,-1000.0,0.00012876,2]
[326856322,1715517033277,-500.0,0.00012876,2]
[326856323,1715517033286,-544.28830793,0.00012888,2]
[326856324,1715517033297,-313.15633728,0.00012888,2]
[326856325,1715517033307,-2114.56,0.00012888,2]
[326856326,1715517033317,-2114.56,0.00012888,3]
[326856327,1715517033326,-2114.56,0.00012888,4]
[326856328,1715517033337,-2273.94,0.00012888,2]
[326856329,1715517033346,-2273.94,0.00012888,3]
[326856330,1715517033356,-2273.94,0.00012888,4]
[326856331,1715517033366,-500.0,0.00012888,5]
[326856332,1715517033377,-500.0,0.00012888,6]
[326856333,1715517033385,-500.0,0.00012888,7]
[326856334,1715517033395,-500.0,0.00012888,8]
[326856335,1715517033405,-500.0,0.00012888,9]
[326856336,1715517033414,-500.0,0.00012888,10]
[326856337,1715517033424,-500.0,0.00012888,11]
[326856338,1715517033433,-874.71,0.00012888,2]
[326856339,1715517033442,-874.71,0.00012888,3]
[326856340,1715517033451,-874.71,0.00012888,4]
[326856341,1715517033462,-1444.71,0.00012888,5]
[326856342,1715517033471,-1444.71,0.00012888,6]
[326856343,1715517033481,-1444.71,0.00012888,7]
[326856344,1715517033490,-1444.71,0.00012888,8]
[326856345,1715517033501,-1444.71,0.00012888,9]
[326856346,1715517033511,-1444.71,0.00012888,10]
[326856347,1715517033521,-1444.71,0.00012888,11]
[326856348,1715517033532,-500.0,0.00012888,2]
[326856349,1715517033541,-513.64615735,0.00012888,3]
[326856350,1715517033552,-3330.62,0.00012888,2]
[326856351,1715517033561,-3330.62,0.00012888,3]
[326856352,1715517033571,-3330.62,0.00012888,4]
[326856353,1715517033582,-2039.57,0.00012888,5]
[326856354,1715517033593,-2039.57,0.00012888,6]
[326856355,1715517033603,-2039.57,0.00012888,7]
[326856356,1715517033612,-2039.57,0.00012888,8]
[326856357,1715517033621,-2039.57,0.00012888,9]
[326856358,1715517033629,-2039.57,0.00012888,10]
[326856359,1715517033638,-2039.57,0.00012888,11]
[326856360,1715517033647,-1743.48,0.00012888,2]
[326856361,1715517033657,-1743.48,0.00012888,3]
[326856362,1715517033667,-1743.48,0.00012888,4]
[326856363,1715517033677,-6571.75,0.00012888,5]
[326856364,1715517033687,-6571.75,0.00012888,6]
[326856365,1715517033698,-6571.75,0.00012888,7]
[326856366,1715517033707,-6571.75,0.00012888,8]
[326856367,1715517033716,-6571.75,0.00012888,9]
[326856368,1715517033725,-6571.75,0.00012888,10]
[326856369,1715517033735,-6571.75,0.00012888,11]
[326856370,1715517033744,-4506.22,0.00012888,5]
[326856371,1715517033754,-4506.22,0.00012888,6]
[326856372,1715517033765,-4506.22,0.00012888,7]
[326856373,1715517033774,-4506.22,0.00012888,8]
[326856374,1715517033783,-8681.61,0.00012888,2]
[326856375,1715517033792,-4506.22,0.00012888,9]
[326856376,1715517033801,-8681.61,0.00012888,3]
[326856377,1715517033811,-4506.22,0.00012888,10]
[326856378,1715517033821,-8681.61,0.00012888,4]
[326856379,1715517033831,-4506.22,0.00012888,11]
[326856380,1715517033842,-3544.41,0.00012888,2]
[326856381,1715517033851,-3544.41,0.00012888,3]
[326856382,1715517033861,-3544.41,0.00012888,4]
[326856383,1715517033870,-2020.79,0.00012888,5]
[326856384,1715517033880,-2020.79,0.00012888,6]
[326856385,1715517033889,-2020.79,0.00012888,7]
[326856386,1715517033899,-2020.79,0.00012888,8]
[326856387,1715517033909,-2020.79,0.00012888,9]
[326856388,1715517033920,-2020.79,0.00012888,10]
[326856389,1715517033931,-2020.79,0.00012888,11]
[326856390,1715517033941,-7164.37,0.00012888,2]
[326856391,1715517033952,-7164.37,0.00012888,3]
[326856392,1715517033962,-7164.37,0.00012888,4]
[326856393,1715517033972,-1605.03,0.00012888,5]
[326856394,1715517033982,-1605.03,0.00012888,6]
[326856395,1715517033991,-1605.03,0.00012888,7]
[326856396,1715517034000,-1605.03,0.00012888,8]
[326856397,1715517034010,-1605.03,0.00012888,9]
[326856398,1715517034019,-1605.03,0.00012888,10]
[326856399,1715517034028,-1605.03,0.00012888,11]
[326856400,1715517034037,-5202.64,0.00012888,2]
[326856401,1715517034047,-5202.64,0.00012888,3]
[326856402,1715517034057,-5202.64,0.00012888,4]
[326856403,1715517034066,-944.73,0.00012888,5]
[326856404,1715517034075,-944.73,0.00012888,6]
[326856405,1715517034085,-944.73,0.00012888,7]
[326856406,1715517034097,-944.73,0.00012888,8]
[326856407,1715517034106,-944.73,0.00012888,9]
[326856408,1715517034115,-944.73,0.00012888,10]
[326856409,1715517034123,-944.73,0.00012888,11]
[326856410,1715517034134,-3852.62,0.00012888,2]
[326856411,1715517034145,-3852.62,0.00012888,3]
[326856412,1715517034154,-3852.62,0.00012888,4]
[326856413,1715517034164,-1971.65,0.00012888,5]
[326856414,1715517034175,-1971.65,0.00012888,6]
[326856415,1715517034185,-1971.65,0.00012888,7]
[326856416,1715517034195,-3401.19,0.00012888,2]
[326856417,1715517034203,-1971.65,0.00012888,8]
[326856418,1715517034213,-1971.65,0.00012888,9]
[326856419,1715517034222,-3401.19,0.00012888,3]
[326856420,1715517034232,-1971.65,0.00012888,10]
[326856421,1715517034241,-3401.19,0.00012888,4]
[326856422,1715517034250,-1971.65,0.00012888,11]
[326856423,1715517034260,-12897.44,0.00012888,2]
[326856424,1715517034270,-12897.44,0.00012888,3]
[326856425,1715517034280,-12897.44,0.00012888,4]
[326856426,1715517034290,-6135.11,0.00012888,5]
[326856427,1715517034299,-6135.11,0.00012888,6]
[326856428,1715517034310,-6135.11,0.00012888,7]
[326856429,1715517034320,-6135.11,0.00012888,8]
[326856430,1715517034329,-6135.11,0.00012888,9]
[326856431,1715517034338,-6135.11,0.00012888,10]
[326856432,1715517034347,-6135.11,0.00012888,11]
[326856433,1715517034356,-844.94,0.00012888,2]
[326856434,1715517034365,-844.94,0.00012888,3]
[326856435,1715517034378,-844.94,0.00012888,4]
[326856436,1715517034400,-513.04,0.00012888,5]
[326856437,1715517034421,-513.04,0.00012888,6]
[326856438,1715517034442,-513.04,0.00012888,7]
[326856439,1715517034464,-513.04,0.00012888,8]
[326856440,1715517034485,-513.04,0.00012888,9]
[326856441,1715517034506,-513.04,0.00012888,10]
[326856442,1715517034528,-513.04,0.00012888,11]
[326856443,1715517034550,-2432.04,0.00012888,2]
[326856444,1715517034570,-2030.95,0.00012888,5]
[326856445,1715517034590,-2432.04,0.00012888,3]
[326856446,1715517034607,-2030.95,0.00012888,6]
[326856447,1715517034616,-2432.04,0.00012888,4]
[326856448,1715517034626,-2030.95,0.00012888,7]
[326856449,1715517034635,-2030.95,0.00012888,8]
[326856450,1715517034644,-359.35581054,0.00012888,5]
[326856451,1715517034822,-472.59418946,0.00012888,5]
[326856452,1715517034831,-500.0,0.00012888,5]
[326856453,1715517034840,-831.95,0.00012888,6]
[326856454,1715517034849,-2030.95,0.00012888,9]
[326856455,1715517034858,-500.0,0.00012888,6]
[326856456,1715517034867,-345.83016936,0.00012888,7]
[326856457,1715517034879,-486.11983064,0.00012888,7]
[326856458,1715517034888,-2030.95,0.00012888,10]
[326856459,1715517034897,-295.97834139,0.00012888,7]
[326856460,1715517034924,-204.02165861,0.00012888,7]
[326856461,1715517034933,-831.95,0.00012888,8]
[326856462,1715517034942,-500.0,0.00012888,2]
[326856463,1715517034951,-2030.95,0.00012888,11]
[326856464,1715517034960,-500.0,0.00012888,8]
[326856465,1715517034969,-831.95,0.00012888,9]
[326856466,1715517034978,-500.0,0.00012888,2]
[326856467,1715517034988,-500.0,0.00012888,9]
[326856468,1715517034997,-500.0,0.00012888,2]
[326856469,1715517035006,-831.95,0.00012888,10]
[326856470,1715517035016,-500.0,0.00012888,10]
[326856471,1715517035024,-608.23584688,0.00012888,2]
[326856472,1715517035034,-831.95,0.00012888,11]
[326856473,1715517035043,-500.0,0.00012888,11]
[326856474,1715517035052,-500.0,0.00012888,5]
[326856475,1715517035061,-539.19665152,0.00012888,5]
[326856476,1715517035070,-500.0,0.00012888,6]
[326856477,1715517035080,-500.0,0.00012888,7]
[326856478,1715517035089,-500.0,0.00012888,8]
[326856479,1715517035102,-500.0,0.00012888,9]
[326856480,1715517035111,-500.0,0.00012888,10]
[326856481,1715517035123,-500.0,0.00012888,11]
[326856482,1715517035133,-1004.82,0.00012888,5]
[326856483,1715517035142,-1719.24,0.00012888,2]
[326856484,1715517035153,-500.0,0.00012888,5]
[326856485,1715517035162,-1004.82,0.00012888,6]
[326856486,1715517035171,-1719.24,0.00012888,2]